Cogmind - Beta 16 @@@ ROGUE MODE // 2025.10.25 @ 18:14:31 Player: Minty Result: Destroyed by as-00058 with Assembled Heavy Rifle Performance ------------- Evolutions (0) 0 Regions Visited (2) 400 Robots Destroyed (23) 115 Value Destroyed (436) 436 Prototype IDs (5) 100 Alien Tech Used (0) 0 Bonus (0) 0 TOTAL SCORE: 1051 Bonus ------- None Cogmind --------- Core Integrity 0/250 Matter 299/300 Energy 99/100 System Corruption 3% Temperature Cool (0) Movement Rolling (80) Location -10/Mines Parts ------- > --- POWER (1) -------- (None) > --- PROPULSION (2) --- Wheel > --- UTILITY (2) ------ Small Storage Unit > --- WEAPON (2) ------- (None) > --- INVENTORY (8) ---- Light Nuclear Core Terrain Scanner Terrain Scan Processor Light Armor Plating Beam Cannon Beam Cannon Peak State ------------ > --- POWER ------------ Ion Engine > --- PROPULSION ------- Light Treads Light Treads > --- UTILITY ---------- Improved Heat Sink Small Storage Unit > --- WEAPON ----------- Assault Rifle Light Assault Rifle > --- INVENTORY -------- Light Ion Engine Light Nuclear Core Wheel Compact Wheel Hover Unit Hover Unit Hover Unit Small Laser [Rating: 10] Favorites ----------- Power Ion Engine Engine Ion Engine Propulsion Light Treads Treads Light Treads Leg Aluminum Leg Wheel Wheel Hover Unit Hover Unit Utility Small Storage Unit Device Improved Heat Sink Storage Small Storage Unit Protection Light Armor Plating Weapon Beam Cannon Energy Cannon Beam Cannon Ballistic Gun Assault Rifle Build | -11 -10 -10 ------- Run | Yrd Mat Min Slots Evolved . | . . . Power . | . . . Propulsion . | . . . Utility . | . . . Weapon . | . . . Parts Attached 15 | . 11 4 Power 2 | . 2 . Engine 2 | . 2 . Core . | . . . Reactor . | . . . Propulsion 6 | . 2 4 Treads 2 | . 2 . Leg . | . . . Wheel 1 | . . 1 Hover 3 | . . 3 Flight . | . . . Utility 3 | . 3 . Device 2 | . 2 . Storage . | . . . Processor . | . . . Hackware . | . . . Protection 1 | . 1 . Artifact . | . . . Weapon 4 | . 4 . Energy Gun . | . . . Energy Cannon 2 | . 2 . Ballistic Gun 2 | . 2 . Ballistic Cannon . | . . . Launcher . | . . . Special Weapon . | . . . Impact Weapon . | . . . Slashing Weapon . | . . . Piercing Weapon . | . . . Special Melee Weapon . | . . . Unidentified Prototypes . | . . . Parts Lost 6 | . . 6 Power 1 | . . 1 Propulsion 4 | . . 4 Utility 1 | . . 1 Weapon . | . . . Highest Loss Streak 5 | . . 5 To Critical Strikes . | . . . Average Backups 7 | . 7 7 Power 1 | . 1 1 Propulsion 3 | . 4 3 Utility 2 | . 1 3 Weapon . | . . . Tool/Special . | . . . Unused Backups 9 | . 7 2 Power 2 | . 1 1 Propulsion 3 | . 3 . Utility 2 | . 1 1 Weapon 2 | . 2 . Tool/Special . | . . . Average Slot Usage (%) 94 | . 97 89 Engine 13 | . 14 13 Treads 21 | . 25 14 Leg 1 | . 2 . Wheel 1 | . . 5 Device 11 | . 10 13 Storage 14 | . 14 14 Energy Cannon 16 | . 11 25 Ballistic Gun 11 | . 16 . Peak Build Rating 10 | . 10 10 Average Rating 8 | . 8 9 On Entrance 7 | 6 6 10 Avg Prop Armor Cover (%) . | . . . Naked Turns . | . . . Heaviest Build 17 | 13 17 17 Greatest Support 40 | 20 40 40 Greatest Overweight (x) 1 | . . 1 Average Overweight (x) . | . . . Largest Inventory Capacity 8 | . 8 8 Average Capacity 8 | . 8 8 Most Carried 8 | . 8 8 Average Carried 7 | . 7 7 Final Capacity 8 | 8 8 8 Final Carried 8 | 6 8 6 Class Distribution -------------------- 100% | Mutant Dominant Class ---------------- Mutant | -10/Materials Mutant | -10/Mines Resources | -11 -10 -10 ----------- Run | Yrd Mat Min Matter Collected 484 | 200 260 24 Remotely . | . . . Salvage Created 821 | . 694 127 Parts 38 | . 33 5 Haulers Intercepted 1 | . 1 . Recyclers Shooed 2 | . 1 1 Parts Field Recycled . | . . . Retrieved Matter . | . . . Parts Self-Destructed . | . . . Prevented . | . . . Parts Restored . | . . . Kills | -11 -10 -10 ------- Run | Yrd Mat Min Combat Hostiles Destroyed 13 | . 9 4 Guns 2 | . 2 . Cannons 11 | . 7 4 Classes Destroyed 8 | . 8 . Worker 2 | . 2 . Builder 2 | . 2 . Tunneler 1 | . 1 . Hauler 1 | . 1 . Recycler 2 | . 2 . Watcher 2 | . 2 . Swarmer 5 | . 3 2 Grunt 8 | . 6 2 Best Kill Streak 5 | . 5 2 Combat Bots Only 3 | . 3 2 Max Kills in Single Turn 2 | . 2 1 Gunslinging . | . . . Exploded . | . . . Melee . | . . . Uniques/NPCs Destroyed . | . . . Combat | -11 -10 -10 -------- Run | Yrd Mat Min Hostile Shots Fired 100 | . 57 43 Missed 28 | . 16 12 Hits 72 | . 41 31 Melee 7 | . . 7 Projectile 65 | . 41 24 Critical Strikes 3 | . 2 1 Damage Taken 936 | . 366 570 Core 250 | . 41 209 Absorbed by Shields . | . . . Core Remaining (%) 100 | 100 . . Volleys Fired 61 | . 48 13 Largest 2 | . 2 2 Hottest 120 | . 120 120 Shots Fired 123 | . 97 26 Gun 50 | . 50 . Cannon 73 | . 47 26 Launcher . | . . . Special . | . . . Kinetic 50 | . 50 . Thermal 73 | . 47 26 Explosive . | . . . Electromagnetic . | . . . Robot Hit Streak 8 | . 7 8 Robot Miss Streak 7 | . 7 2 Penetration Max . | . . . Secondary Targets . | . . . Shots Hit Robots 70 | . 54 16 Core Hits 33 | . 25 8 Critical Kills . | . . . Critical Parts Destroyed . | . . . Critical Strikes . | . . . Melee Attacks . | . . . Impact . | . . . Slashing . | . . . Piercing . | . . . Sneak Attacks . | . . . Combat Hostiles . | . . . Follow-up Attacks . | . . . Damage Inflicted 1143 | . 802 341 Guns 382 | . 382 . Cannons 718 | . 420 298 Explosions . | . . . Melee . | . . . Ramming 43 | . . 43 Kinetic 382 | . 382 . Thermal 718 | . 420 298 Explosive . | . . . Electromagnetic . | . . . Impact . | . . . Slashing . | . . . Piercing . | . . . Highest Corruption 3 | . 2 3 Average Corruption 2 | . 2 2 Corruption Purged . | . . . Corruption Blocked . | . . . Effects 10 | . 6 4 Message Errors 1 | . . 1 Matter Fused 3 | . 2 1 Heat Flow Errors 3 | . 2 1 Energy Discharges 2 | . 1 1 Misfires 1 | . 1 . Overload Shots . | . . . Overflow Damage 8 | . . 8 Projectiles 8 | . . 8 Explosions . | . . . Melee . | . . . Knockbacks . | . . . Impact . | . . . Kinetic . | . . . Secondary . | . . . Self-Inflicted Damage 20 | . . 20 Shots . | . . . Rammed 9 | . . 9 Targets Rammed 10 | . 1 9 Kicked . | . . . Crushed 1 | . 1 . Highest Temperature 192 | . 117 192 Average Temperature 49 | . 34 76 Received Heat Transfer 170 | . 84 86 Siege Activations . | . . . Martial Activations . | . . . Shielding Activations . | . . . Robots Disrupted . | . . . Combat Hostiles . | . . . Robots Corrupted . | . . . Combat Hostiles . | . . . Parts Fried . | . . . Impact Corruptions . | . . . Robots Melted . | . . . Combat Hostiles . | . . . Parts Melted 4 | . 3 1 Heat Transferred 1517 | . 888 629 Parts Sabotaged . | . . . Parts Stolen . | . . . Parts Stripped . | . . . Power Chain Reactions . | . . . Alert | -11 -10 -10 ------- Run | Yrd Mat Min Maximum Alert Level . | . . . Low Security (%) 100 | . 100 100 Level 1 . | . . . Level 2 . | . . . Level 3 . | . . . Level 4 . | . . . Level 5 . | . . . High Security . | . . . Max Security . | . . . Peak Influence 168 | . 168 79 Initial 58 | . . 58 Average 38 | . 34 46 Influence Increases 479 | . 358 121 Destroy 0b10 Robot/C 260 | . 180 80 Destroy 0b10 Robot/NC 50 | . 50 . Destroy Leader 66 | . 46 20 Successful Hack 26 | . 20 6 Select Force Hacks 30 | . 30 . Disable Machine 15 | . 15 . Destroy Structure 2 | . 2 . Lose Combat Pursuer 30 | . 15 15 Influence Decreases 479 | . 206 273 Entered New Map 94 | . . 94 Time Decay 366 | . 206 160 Lost Part 19 | . . 19 Squads Dispatched 1 | . 1 . Investigation 1 | . 1 . Extermination . | . . . Reinforcement . | . . . Assault . | . . . Garrison . | . . . Intercept . | . . . Searches Triggered . | . . . Construction Impeded . | . . . Haulers Reinforced . | . . . Active Scanning Responses . | . . . Cargo Convoy Interrupts . | . . . Stealth | -11 -10 -10 --------- Run | Yrd Mat Min Distress Signals 1 | . 1 . Communications Jammed . | . . . Distress Signals . | . . . Times Spotted 30 | . 17 13 Peak Tracking Total 9 | . 6 9 Tactical Retreats 2 | . 1 1 Traps | -11 -10 -10 ------- Run | Yrd Mat Min Traps Triggered 1 | . 1 . Indirectly . | . . . Trap Hack Attempts . | . . . Triggered . | . . . Disarmed . | . . . Reprogrammed . | . . . Reused . | . . . Traps Extracted . | . . . Installed . | . . . Triggered . | . . . Machines | -11 -10 -10 ---------- Run | Yrd Mat Min Machines Disabled 1 | . 1 . Max in Single Turn 1 | . 1 . Machines Repaired . | . . . Machines Dismantled . | . . . Machines Sabotaged . | . . . Overloaded Fab Kills . | . . . Hacking | -11 -10 -10 --------- Run | Yrd Mat Min Machines Accessed 7 | . 6 1 Terminals 6 | . 5 1 Fabricators . | . . . Repair Stations . | . . . Recycling Units 1 | . 1 . Scanalyzers . | . . . Garrison Access . | . . . Total Hacks 25 | . 21 4 Successful 17 | . 14 3 Failed 7 | . 6 1 Catastrophic . | . . . Database Lockouts 1 | . 1 . Manual 23 | . 18 5 Terminals 22 | . 18 4 Fabricators . | . . . Repair Stations . | . . . Recycling Units 3 | . 3 . Scanalyzers . | . . . Garrison Access . | . . . Terminal Hacks 7 | . 4 3 Robot Analysis 2 | . 1 1 Prototype ID Bank 3 | . 2 1 Alert Level 1 | . . 1 Locate Traps 1 | . 1 . Fabricator Hacks . | . . . Repair Station Hacks . | . . . Recycling Unit Hacks 1 | . 1 . Report Inventory 1 | . 1 . Scanalyzer . | . . . Garrison Access Hacks . | . . . Unauthorized Hacks 9 | . 9 . Terminals 8 | . 8 . Botnet 4 | . 4 . Skim 4 | . 4 . Fabricators . | . . . Repair Stations . | . . . Recycling Units 1 | . 1 . Tunnel 1 | . 1 . Scanalyzers . | . . . Garrison Access . | . . . Data Cores Recovered . | . . . Used . | . . . Hacking Detections 7 | . 6 1 Full Trace Events . | . . . Feedback Events . | . . . Feedback Blocked . | . . . Robot Schematics Acquired . | . . . Robots Built . | . . . Authchips . | . . . Time . | . . . Total Robot Build Rating . | . . . Part Schematics Acquired . | . . . Parts Built . | . . . Authchips . | . . . Time . | . . . Total Part Build Rating . | . . . Part Studies Acquired . | . . . Parts Repaired . | . . . Time . | . . . Parts Recycled . | . . . Recycled Matter . | . . . Retrieved Matter . | . . . Retrieved Components . | . . . Parts Scanalyzed . | . . . Part Schematics Acquired . | . . . Parts Damaged . | . . . Bothacking | -11 -10 -10 ------------ Run | Yrd Mat Min Used RIF Installer . | . . . Robots Hacked . | . . . Non-combat . | . . . Combat . | . . . Robot Hacks Applied . | . . . Relay Couplers Released . | . . . Fabnet Peak Effective % . | . . . Robots Rewired . | . . . Allies Hacked . | . . . Hacks Repelled . | . . . Allies | -11 -10 -10 -------- Run | Yrd Mat Min Total Allies 3 | . . 3 Largest Group 3 | . . 3 Highest-Rated Group 40 | . . 40 Highest-Rated Ally 16 | . . 16 Total Orders . | . . . Ally Attacks 11 | . . 11 Total Damage 73 | . . 73 Kills . | . . . Allies Corrupted . | . . . Allies Melted . | . . . Intel | -11 -10 -10 ------- Run | Yrd Mat Min Active Infowar (turns) 215 | . 215 . Terrain 215 | . 215 . Robot Analysis Total 2 | . 1 1 Derelict Logs Recovered 1 | . . 1 Drone Launches . | . . . Drone Recoveries . | . . . Exploration | -11 -10 -10 ------------- Run | Yrd Mat Min Turns Passed 1089 | . 741 348 Spaces Moved 617 | 1 367 249 Core . | . . . Treads 414 | . 323 91 Legs 45 | 1 44 . Wheels 142 | . . 142 Hover 16 | . . 16 Flight . | . . . Fastest Speed 56 | 120 120 56 Average Speed 139 | 120 155 115 Slowest Speed 160 | 120 160 160 Overloaded Moves . | . . . Propulsion Burnouts . | . . . Robots Hopped . | . . . Potential Cave-ins . | . . . Cave-ins Triggered . | . . . Exploration Rate (%) 39 | 2 61 55 Regions Visited 2 Branch Regions 1 Pre-discovered Areas 2 | . 1 1 Known Exits Taken . | . . . Unknown Exits Taken 2 | 1 1 . Scrap Searched 1 | . . 1 Spaces Dug . | . . . Terrain Destroyed . | . . . Melee . | . . . Projectile . | . . . AOE . | . . . Terrain Rammed . | . . . Walls Destroyed . | . . . Machines Disabled . | . . . Actions | -11 -10 -10 --------- Run | Yrd Mat Min Total 728 | . 445 283 Wait 6 | . 2 4 Move 615 | . 366 249 Hop . | . . . Pick Up 7 | . 7 . Fast Attach 2 | . 2 . Attach 6 | . 2 4 Detach 3 | . 1 2 Swap 9 | . 8 1 Drop 9 | . 8 1 Fire 61 | . 48 13 Melee . | . . . Ram 8 | . . 8 Kick . | . . . Crush 2 | . 1 1 Escape Stasis . | . . . Rewire . | . . . Trap . | . . . Miscellaneous . | . . . Route ------- -11/Scrapyard -10/Materials (discovered 3 exits: [*Mat x2] / *Min) -10/Mines (discovered 1 exit: [*Mat]) History --------- Turn | Location | Event 1 | -11/Scrapyard | Discovered new exit (range 0) 1 | -11/Scrapyard | Entered Materials 314 | -10/Materials | Build established: Mutant 366 | -10/Materials | Central database locked down 489 | -10/Materials | Discovered new exit (range 7) 618 | -10/Materials | Discovered new exit (range 10) 645 | -10/Materials | Discovered new exit (range 16) 742 | -10/Materials | Entered Mines 766 | -10/Mines | Discovered new exit (range 9) 930 | -10/Mines | Learned location of Zion (-7) 936 | -10/Mines | Assembled infested the area 941 | -10/Mines | Assisted by a Guerilla fighting off Assembled 942 | -10/Mines | Assisted by bots powering up and referring to "LRC-V3" 1084 | -10/Mines | Core integrity fell below 50% 1089 | -10/Mines | Core integrity fell below 20% 1090 | -10/Mines | Destroyed by as-00058 with Assembled Heavy Rifle Last Messages --------------- 00983_ System corrupted: Energy discharge (-57). 01043_ K-01 Serf collects debris. 01051_ System corrupted: Heat flow error (+218). 01055_ K-01 Serf collects debris. 01060_ Slammed into K-01 Serf. 01075_ Hover Unit destroyed. 01076_ Imp. Heat Sink destroyed. 01076_ System corrupted by crushing effect (+1). 01076_ Knocked back. 01077_ Slammed into as-85610. 01077_ Hover Unit destroyed. 01078_ Slammed into as-61015. 01078_ Ion Engine destroyed. 01080_ Slammed into as-22090. 01082_ Hover Unit broken. 01082_ Destabilizing: Short circuit. 01083_ Broken Hover Unit destroyed. 01083_ Slammed into as-22090. 01085_ Acquired 6 matter. 01085_ Slammed into as-00058. Map ----- +----------------------------------------------------+ | ??????????????## #####??????# ##?# | | ??????????????# #??????# #?? | | ??????????????# !!!! ######### #?# | | ??????????????# !!!! #?## ### | | ??????????????## !!!! ##### ##### ### | | ???????????????### ! !! #???# ## | | ?????????????????## #???####### ## | | ??????????????????## ####???????### ### | | ???????????????????####??????????# % #?## | | ?????????????????????????????????# ####??# | | ?????????????????????????????????# #?????# | | ?????????????????????????????????# #????## | | ????????????????????????????###### #????# | | ????????????????????????????# #????# | | ????????????????????????????# #####????# | | ???????????????????????###### =######### | | ???????????????????????# %*%! =! | | | ???????????????????????# %=% *== % | | ???????????????????????# =####%=### | | ???????????????????????#### #??# #??# | | ??????????????????????? ### #??# ?? | | ???????????????????????# #?## ##??### ?## | | ????????????????####???# #??# ##???????#?# | | ???????????????## ##### #??# #??????????# | | ???????????????# aaa #### #??????????? | | ???????????????# @ ! %%a #??????????? | | ???????????????## ###########??????????? | | ?????????????? #????????????????????? | | ??????????? $ #????????????????????? | | ?????????? ##### #????????????????????? | | ????????? ??????## ????????????????????? | | ?????????????????## ???????????????????? | | ??????????????????## ???????????????????? | | ????????????????????#!%??????????????????? | | ????????????????????? !#?????????????????? | | ????????????????????? #?????????????????? | | ????????????????????? #?????????????????? | | ?????????????????????? #?????????????????? | | ?????????????????????? ?????????????????? | | ?????????????????????????????????????????? | | ?????????????????????????????????????????? | | ?????????????????????????????????????????? | | ?????????????????????????????????????????? | | ?????????????????????????????????????????? | | ?????????????????????????????????????????? | | ?????????????????????????????????????????? | | ?????????????????????????????????????????? | | ?????????????????????????????????????????? | | ?????????????????????????????????????????? | | ?????????????????????????????????????????? | +----------------------------------------------------+ Best States ------------- Heat Dissipation 39 Energy Generation 10 Energy Capacity 250 Matter Stores 300 Matter Capacity 300 Sight Range 16 Terrain Scan Range 14 Terrain Scan Density 10 Armor Coverage 150 Evasion (%) 55 Recoil Reduction 2 Item Schematics ----------------- None Robot Schematics ------------------ None Fabricated ------------ Nothing Repaired ---------- Nothing Studied --------- None Alien Tech Used ----------------- None Achievements -------------- None Challenges ------------ None Game ------ Seed RelayMyomerNetwork Manual? 0 Play Time 00:09:50 Cumulative 1206.6 hours Start 2025.10.24 @ 16:03:06 End 2025.10.25 @ 18:14:31 Sessions 5 Manual Loads 0 Difficulty Rogue Special Mode None Game No. 1485 Rogue 1201 Adventurer 124 Explorer 160 Win Type - Total 56 Types 42/0/8/4/1/0/0/1/0/0 Lore% 92 Gallery% 86 Achievement% 62 Wizard Run 0 Options --------- Layout 0 ASCII 0 Keyboard 1 Movement Numpad Keybinds 0 Fullscreen 2 Font 18/X11 Map View 76x50 Zoom Use 3% Tactical HUD 1 Map Filters NONE Filters NONE Steam 1 RUN: ac35d6fd-e0e0-4ed5-bb04-f10f5b075e77